[Event "XLI Barbera del Valles Open 2018"]
[Site "Barbera del Valles"]
[Date "2018.07.05"]
[Round "2"]
[White "Gonzales, Jayson"]
[Black "Martinez Alcantara, Jose Eduardo"]
[Result "0-1"]
[ECO "A45"]
[WhiteElo "2367"]
[BlackElo "2545"]
[Annotator "ChessBase"]
[PlyCount "62"]
[EventDate "2018.07.04"]
[EventType "swiss"]
[EventCountry "ESP"]
[SourceTitle "playchess.com"]
[Source "ChessBase"]
[SourceQuality "1"]
[TimeControl "5400+30"]

1. d4 {[%emt 0:00:00]} Nf6 {[%emt 0:00:00]} 2. Bg5 {[%emt 0:00:33]} Ne4 {[%emt 0:00:00]} 3. Bf4 {[%emt 0:00:15]} d5 {[%emt 0:00:00]} 4. f3 {[%emt 0:00:46]} Nf6 {[%emt 0:00:03]} 5. Nc3 {[%emt 0:00:29]} c5 {[%emt 0:02:18]} 6. e3 {[%emt 0:09:29]} a6 {[%emt 0:02:19]} 7. Nge2 {[%emt 0:04:15]} e6 {[%emt 0:03:45]} 8. g4 {[%emt 0:01:40]} Nc6 {[%emt 0:01:06]} 9. Bg2 {[%emt 0:00:44]} Be7 {[%emt 0:03:27]} 10. Qd2 {[%emt 0:00:38]} b5 {[%emt 0:00:47]} 11. a4 {[%emt 0:07:14]} b4 {[%emt 0:01:30]} 12. Nd1 {[%emt 0:00:10]} a5 {[%emt 0:01:30]} 13. Nf2 {[%emt 0:04:13]} Ba6 {[%emt 0:02:22]} 14. Nd3 {[%emt 0:07:14]} cxd4 {[%emt 0:01:36]} 15. exd4 {[%emt 0:00:36]} Qb6 {[%emt 0:00:10]} 16. Be3 {[%emt 0:01:49]} O-O {[%emt 0:02:05]} 17. O-O {[%emt 0:02:38]} Rac8 {[%emt 0:03:15]} 18. Kh1 {[%emt 0:05:30]} Nd7 {[%emt 0:02:07]} 19. Rad1 {[%emt 0:06:15]} Qc7 {[%emt 0:05:03]} 20. f4 {[%emt 0:05:12]} Nf6 {[%emt 0:01:24]} 21. Nf2 {[%emt 0:00:40]} Nb8 {[%emt 0:02:02]} 22. Rc1 {[%emt 0:00:14]} Nbd7 {[%emt 0:01:19]} 23. Rfe1 {[%emt 0:00:43]} Ne8 {[%emt 0:01:55]} 24. b3 {[%emt 0:01:51]} Nd6 {[%emt 0:00:19]} 25. f5 {[%emt 0:04:02]} exf5 {[%emt 0:01:06]} 26. Nf4 {[%emt 0:00:20]} Nb6 {[%emt 0:03:25]} 27. gxf5 {[%emt 0:01:28]} Nxf5 {[%emt 0:00:24]} 28. Bh3 {[%emt 0:00:19]} Nxe3 {[%emt 0:01:46]} 29. Bxc8 {[%emt 0:02:09]} Qxf4 {[%emt 0:00:45]} 30. Rxe3 {[%emt 0:01:36]} Nxc8 {[%emt 0:00:17]} 31. Rce1 {[%emt 0:00:50]} Bh4 {[%emt 0:01:01]} 0-1

[Event "XLI Barbera del Valles Open 2018"]
[Site "Barbera del Valles"]
[Date "2018.07.05"]
[Round "2"]
[White "Frayna, Janelle Mae"]
[Black "Manolache, Marius"]
[Result "1-0"]
[ECO "E62"]
[WhiteElo "2315"]
[BlackElo "2494"]
[Annotator "ChessBase"]
[PlyCount "147"]
[EventDate "2018.07.04"]
[EventType "swiss"]
[EventCountry "ESP"]
[SourceTitle "playchess.com"]
[Source "ChessBase"]
[SourceQuality "1"]
[TimeControl "5400+30"]

1. Nf3 {[%emt 0:00:00]} d6 {[%emt 0:00:00]} 2. c4 {[%emt 0:00:22]} g6 {[%emt 0:00:19]} 3. Nc3 {[%emt 0:00:53]} Bg7 {[%emt 0:00:09]} 4. d4 {[%emt 0:00:13]} Nf6 {[%emt 0:00:35]} 5. g3 {[%emt 0:00:13]} c6 {[%emt 0:00:24]} 6. Bg2 {[%emt 0:00:24]} a6 {[%emt 0:00:08]} 7. O-O {[%emt 0:01:48]} b5 {[%emt 0:00:07]} 8. b3 {[%emt 0:04:36]} O-O {[%emt 0:03:38]} 9. Bb2 {[%emt 0:10:04]} Ra7 {[%emt 0:03:01]} 10. c5 {[%emt 0:03:30]} dxc5 11. dxc5 {[%emt 0:00:04]} Ne4 {[%emt 0:14:18]} 12. Qc2 {[%emt 0:03:40]} Bf5 {[%emt 0:20:56]} 13. Nxe4 {[%emt 0:12:52]} Bxe4 {[%emt 0:00:06]} 14. Qxe4 {[%emt 0:00:22]} Bxb2 {[%emt 0:00:06]} 15. Rab1 {[%emt 0:10:13]} Bg7 {[%emt 0:03:11]} 16. Rfd1 {[%emt 0:07:06]} Rd7 {[%emt 0:00:12]} 17. Rxd7 {[%emt 0:04:20]} Qxd7 {[%emt 0:00:06]} 18. a4 {[%emt 0:00:07]} Rc8 {[%emt 0:06:12]} 19. h4 {[%emt 0:01:04]} Qa7 {[%emt 0:01:11]} 20. Rc1 {[%emt 0:08:06]} Rd8 {[%emt 0:00:54]} 21. Ne5 {[%emt 0:01:06]} Bxe5 {[%emt 0:16:18]} 22. Qxe5 {[%emt 0:00:03]} Qd7 {[%emt 0:00:36]} 23. h5 {[%emt 0:02:37]} f6 {[%emt 0:02:00]} 24. Qe4 {[%emt 0:02:53]} Kf7 {[%emt 0:00:39]} 25. axb5 {[%emt 0:04:43]} axb5 {[%emt 0:00:06]} 26. Ra1 {[%emt 0:03:24]} Qd4 {[%emt 0:01:08]} 27. Qxd4 {[%emt 0:01:54]} Rxd4 {[%emt 0:00:06]} 28. Ra8 {[%emt 0:00:01]} Rd1+ {[%emt 0:00:30]} 29. Kh2 {[%emt 0:02:17]} Rd8 {[%emt 0:00:06]} 30. f4 {[%emt 0:02:19]} gxh5 {[%emt 0:02:30]} 31. Kh3 {[%emt 0:00:57]} b4 {[%emt 0:06:08]} 32. Kh4 {[%emt 0:02:01]} Rf8 {[%emt 0:05:27]} 33. Ra4 {[%emt 0:01:29]} Nd7 {[%emt 0:00:34]} 34. Bxc6 {[%emt 0:02:29]} Nxc5 {[%emt 0:00:06]} 35. Rxb4 {[%emt 0:00:01]} Rc8 {[%emt 0:05:14]} 36. Bf3 {[%emt 0:00:44]} Rd8 {[%emt 0:02:40]} 37. Rb5 {[%emt 0:01:55]} Na6 {[%emt 0:01:15]} 38. Bxh5+ {[%emt 0:01:52]} Kf8 {[%emt 0:00:17]} 39. Rb6 {[%emt 0:01:23]} Nc7 {[%emt 0:00:22]} 40. Bf3 {[%emt 0:01:05]} Nd5 {[%emt 0:00:04]} 41. Rb5 {[%emt 0:01:09]} Ne3 {[%emt 0:00:13]} 42. g4 {[%emt 0:02:17]} Nc2 {[%emt 0:00:28]} 43. Rd5 {[%emt 0:01:18]} Rb8 {[%emt 0:00:20]} 44. Be4 {[%emt 0:01:03]} Na1 {[%emt 0:00:59]} 45. Rd1 {[%emt 0:00:27]} Nxb3 {[%emt 0:00:17]} 46. Rb1 {[%emt 0:00:25]} Rb5 {[%emt 0:01:32]} 47. Bd3 {[%emt 0:00:48]} Rb7 {[%emt 0:00:07]} 48. Be4 {[%emt 0:00:26]} Rb5 {[%emt 0:00:19]} 49. e3 {[%emt 0:00:17]} e5 {[%emt 0:00:05]} 50. f5 {[%emt 0:00:43]} Nd2 {[%emt 0:02:42]} 51. Rxb5 {[%emt 0:00:09]} Nxe4 {[%emt 0:00:07]} 52. Rb7 {[%emt 0:00:27]} Kg8 {[%emt 0:00:44]} 53. Kh5 {[%emt 0:00:22]} Ng3+ {[%emt 0:00:08]} 54. Kh6 {[%emt 0:00:29]} Nf1 {[%emt 0:00:06]} 55. Rb8+ {[%emt 0:00:16]} Kf7 {[%emt 0:00:07]} 56. Rb7+ {[%emt 0:00:01]} Kg8 {[%emt 0:00:06]} 57. Rb3 {[%emt 0:01:22]} e4 {[%emt 0:00:25]} 58. Rb4 {[%emt 0:00:35]} Nxe3 {[%emt 0:00:30]} 59. Rxe4 {[%emt 0:00:12]} Nd5 {[%emt 0:00:05]} 60. Re8+ {[%emt 0:00:18]} Kf7 {[%emt 0:00:04]} 61. Rh8 {[%emt 0:00:20]} Ne3 {[%emt 0:00:11]} 62. Rxh7+ {[%emt 0:00:14]} Kg8 {[%emt 0:00:05]} 63. Ra7 {[%emt 0:01:29]} Nxg4+ {[%emt 0:00:06]} 64. Kg6 {[%emt 0:00:02]} Kf8 {[%emt 0:00:05]} 65. Ra4 {[%emt 0:00:15]} Ne5+ {[%emt 0:00:13]} 66. Kxf6 {[%emt 0:00:01]} Nd7+ {[%emt 0:00:05]} 67. Kg5 {[%emt 0:00:11]} Ne5 {[%emt 0:00:17]} 68. Ra7 {[%emt 0:00:14]} Nc6 {[%emt 0:01:37]} 69. Rc7 {[%emt 0:00:22]} Nb4 {[%emt 0:00:07]} 70. Kg6 {[%emt 0:00:17]} Nd5 {[%emt 0:00:06]} 71. Rf7+ {[%emt 0:00:15]} Ke8 {[%emt 0:00:08]} 72. Ra7 {[%emt 0:00:06]} Nf4+ {[%emt 0:00:32]} 73. Kf6 {[%emt 0:00:19]} Nd5+ {[%emt 0:00:20]} 74. Ke5 {[%emt 0:00:18]} 1-0

[Event "XLI Barbera del Valles Open 2018"]
[Site "Barbera del Valles"]
[Date "2018.07.05"]
[Round "2"]
[White "Mitrabha, Guha"]
[Black "Aguero Jimenez, Luis Lazaro"]
[Result "1/2-1/2"]
[ECO "D02"]
[WhiteElo "2299"]
[BlackElo "2473"]
[Annotator "ChessBase"]
[PlyCount "112"]
[EventDate "2018.07.04"]
[EventType "swiss"]
[EventCountry "ESP"]
[SourceTitle "playchess.com"]
[Source "ChessBase"]
[SourceQuality "1"]
[TimeControl "5400+30"]

1. d4 {[%emt 0:00:00]} d5 {[%emt 0:00:00]} 2. Nf3 {[%emt 0:00:00]} Nf6 {[%emt 0:00:00]} 3. Bf4 {[%emt 0:00:01]} Bf5 {[%emt 0:00:00]} 4. c4 {[%emt 0:00:35]} e6 {[%emt 0:00:25]} 5. Nc3 {[%emt 0:00:14]} Bb4 {[%emt 0:04:58]} 6. e3 {[%emt 0:00:37]} c5 {[%emt 0:03:36]} 7. Bxb8 {[%emt 0:12:39]} Rxb8 {[%emt 0:02:06]} 8. Qa4+ {[%emt 0:00:09]} Qd7 {[%emt 0:00:52]} 9. Qxd7+ {[%emt 0:00:12]} Kxd7 {[%emt 0:00:24]} 10. a3 {[%emt 0:01:45]} Ba5 {[%emt 0:01:19]} 11. Rc1 {[%emt 0:01:45]} Rhc8 {[%emt 0:06:43]} 12. dxc5 {[%emt 0:01:49]} dxc4 {[%emt 0:03:32]} 13. Bxc4 {[%emt 0:01:11]} b5 {[%emt 0:02:42]} 14. cxb6 {[%emt 0:00:37]} Bxc3+ {[%emt 0:07:47]} 15. Rxc3 {[%emt 0:00:02]} Rxb6 {[%emt 0:00:12]} 16. O-O {[%emt 0:03:51]} Rxb2 {[%emt 0:01:10]} 17. Rfc1 {[%emt 0:00:02]} Ke7 {[%emt 0:01:04]} 18. Nd4 {[%emt 0:02:11]} Nd5 {[%emt 0:14:43]} 19. Nxf5+ {[%emt 0:00:59]} exf5 {[%emt 0:00:07]} 20. R3c2 {[%emt 0:00:13]} Rxc2 {[%emt 0:02:33]} 21. Rxc2 {[%emt 0:00:01]} Nb6 {[%emt 0:00:11]} 22. Bb3 {[%emt 0:00:10]} Rxc2 {[%emt 0:00:05]} 23. Bxc2 {[%emt 0:00:02]} Nc4 {[%emt 0:02:20]} 24. a4 {[%emt 0:00:11]} Kd6 {[%emt 0:02:18]} 25. Bxf5 {[%emt 0:01:17]} g6 {[%emt 0:00:20]} 26. Bc2 {[%emt 0:00:10]} Kc5 {[%emt 0:00:05]} 27. g4 {[%emt 0:00:13]} Kb4 {[%emt 0:02:22]} 28. g5 {[%emt 0:01:18]} Nb6 {[%emt 0:01:50]} 29. a5 {[%emt 0:05:35]} Kxa5 {[%emt 0:00:38]} 30. Bb3 {[%emt 0:00:01]} Kb4 {[%emt 0:00:23]} 31. Bxf7 {[%emt 0:00:01]} a5 32. Kf1 {[%emt 0:04:04]} a4 {[%emt 0:03:37]} 33. Ke2 {[%emt 0:00:04]} Kc3 {[%emt 0:00:03]} 34. Kd1 {[%emt 0:01:32]} Kb2 35. e4 {[%emt 0:01:43]} a3 {[%emt 0:01:37]} 36. f4 Na4 {[%emt 0:06:01]} 37. Kd2 {[%emt 0:02:31]} Nc5 {[%emt 0:00:20]} 38. e5 {[%emt 0:00:01]} a2 {[%emt 0:27:08]} 39. Bxa2 {[%emt 0:00:03]} Kxa2 {[%emt 0:00:03]} 40. Ke3 {[%emt 0:00:22]} Kb3 {[%emt 0:03:53]} 41. Kd4 {[%emt 0:00:01]} Ne6+ {[%emt 0:00:11]} 42. Kd5 Nxf4+ {[%emt 0:00:05]} 43. Kd6 {[%emt 0:00:04]} Kc4 {[%emt 0:01:08]} 44. e6 {[%emt 0:00:01]} Nh5 {[%emt 0:00:04]} 45. e7 {[%emt 0:00:53]} Ng7 {[%emt 0:00:04]} 46. Ke5 {[%emt 0:00:04]} Kd3 {[%emt 0:03:01]} 47. h4 {[%emt 0:03:05]} Ne8 {[%emt 0:00:41]} 48. Ke6 {[%emt 0:00:44]} Ke4 {[%emt 0:00:07]} 49. Kf7 {[%emt 0:00:05]} Nd6+ {[%emt 0:00:54]} 50. Kg8 {[%emt 0:00:26]} Kf5 {[%emt 0:00:10]} 51. Kxh7 {[%emt 0:00:05]} Ke6 {[%emt 0:00:41]} 52. e8=Q+ {[%emt 0:01:24]} Nxe8 {[%emt 0:00:03]} 53. Kxg6 {[%emt 0:00:10]} Nd6 {[%emt 0:01:06]} 54. h5 {[%emt 0:00:04]} Nf7 {[%emt 0:00:18]} 55. h6 {[%emt 0:00:53]} Nxg5 {[%emt 0:00:08]} 56. Kxg5 Ke5 1/2-1/2

[Event "XLI Barbera del Valles Open 2018"]
[Site "Barbera del Valles"]
[Date "2018.07.06"]
[Round "3"]
[White "Asis, Tommy"]
[Black "Frayna, Janelle Mae"]
[Result "1-0"]
[ECO "B12"]
[WhiteElo "2538"]
[BlackElo "2315"]
[Annotator "ChessBase"]
[PlyCount "77"]
[EventDate "2018.07.04"]
[EventType "swiss"]
[EventCountry "ESP"]
[SourceTitle "playchess.com"]
[Source "ChessBase"]
[SourceQuality "1"]
[TimeControl "5400+30"]

1. e4 c6 2. d4 d5 3. e5 c5 4. dxc5 e6 5. a3 Nc6 6. Nf3 Bxc5 7. b4 Bb6 8. Bb2 Nge7 9. Bd3 Ng6 10. O-O Nf4 11. c4 O-O 12. Re1 a6 13. Bf1 dxc4 14. Nbd2 Nd3 15. Bxd3 Qxd3 16. Qc1 Nd4 17. Nxd4 Bxd4 18. Bxd4 Qxd4 19. Nxc4 b5 20. Nd6 Qb6 21. Ra2 Bb7 22. Rc2 Bd5 23. Rc5 f6 24. Qd2 Kh8 25. Rxd5 exd5 26. Qxd5 Qc7 27. e6 Qe7 28. Nf5 Qd8 29. Qxd8 Rfxd8 30. e7 Re8 31. Nd6 h5 32. f4 f5 33. Kf2 Kh7 34. Kg3 g6 35. Kh4 Rab8 36. Kg5 Kg7 37. Re6 Kh7 38. Nxe8 Rxe8 39. Kf6 1-0

[Event "XLI Barbera del Valles Open 2018"]
[Site "Barbera del Valles"]
[Date "2018.07.06"]
[Round "3"]
[White "Karthik Venkataraman"]
[Black "Alonso Moyano, Jonathan"]
[Result "1/2-1/2"]
[ECO "B94"]
[WhiteElo "2514"]
[BlackElo "2400"]
[Annotator "ChessBase"]
[PlyCount "75"]
[EventDate "2018.07.04"]
[EventType "swiss"]
[EventCountry "ESP"]
[SourceTitle "playchess.com"]
[Source "ChessBase"]
[SourceQuality "1"]
[TimeControl "5400+30"]

1. e4 {[%emt 0:00:00]} c5 {[%emt 0:00:00]} 2. Nf3 d6 {[%emt 0:00:00]} 3. Nc3 {[%emt 0:00:00]} Nf6 {[%emt 0:00:00]} 4. d4 {[%emt 0:00:00]} cxd4 {[%emt 0:00:00]} 5. Nxd4 {[%emt 0:00:00]} a6 {[%emt 0:00:08]} 6. Bg5 {[%emt 0:00:00]} Nbd7 {[%emt 0:00:09]} 7. Bc4 {[%emt 0:00:03]} g6 8. Qd2 h6 {[%emt 0:01:37]} 9. Bxf6 {[%emt 0:07:47]} Nxf6 {[%emt 0:04:03]} 10. f4 {[%emt 0:05:06]} Bg7 11. O-O-O {[%emt 0:02:07]} Qc7 {[%emt 0:15:14]} 12. Bb3 {[%emt 0:02:33]} Bg4 {[%emt 0:04:24]} 13. Rde1 {[%emt 0:06:00]} e5 {[%emt 0:26:21]} 14. h3 exd4 15. Nd5 {[%emt 0:03:03]} Nxd5 {[%emt 0:00:39]} 16. exd5+ {[%emt 0:00:03]} Kd7 {[%emt 0:01:08]} 17. hxg4 {[%emt 0:02:46]} Rae8 {[%emt 0:01:06]} 18. a4 {[%emt 0:00:07]} Rxe1+ {[%emt 0:05:33]} 19. Rxe1 {[%emt 0:02:52]} Re8 20. a5 {[%emt 0:00:04]} Rxe1+ {[%emt 0:00:24]} 21. Qxe1 Kd8 {[%emt 0:00:04]} 22. Ba4 {[%emt 0:05:03]} Qe7 23. Qxe7+ {[%emt 0:00:21]} Kxe7 {[%emt 0:00:34]} 24. Kd2 g5 {[%emt 0:06:52]} 25. fxg5 {[%emt 0:02:07]} hxg5 26. b4 {[%emt 0:00:00]} Kd8 {[%emt 0:02:40]} 27. Kd3 {[%emt 0:00:35]} Be5 {[%emt 0:05:57]} 28. Kc4 {[%emt 0:00:21]} Kc7 {[%emt 0:00:13]} 29. Be8 {[%emt 0:00:45]} f6 {[%emt 0:07:00]} 30. Ba4 b6 31. Bc6 {[%emt 0:00:39]} bxa5 {[%emt 0:00:49]} 32. bxa5 Bf4 {[%emt 0:02:17]} 33. Kxd4 {[%emt 0:00:13]} Bd2 {[%emt 0:00:03]} 34. c3 {[%emt 0:00:06]} Be1 {[%emt 0:00:06]} 35. Ba4 {[%emt 0:01:14]} Kb7 {[%emt 0:02:58]} 36. Bd1 {[%emt 0:00:11]} Kc7 {[%emt 0:00:05]} 37. Be2 {[%emt 0:00:08]} Kb7 38. Bd3 1/2-1/2

[Event "XLI Barbera del Valles Open 2018"]
[Site "Barbera del Valles"]
[Date "2018.07.06"]
[Round "3"]
[White "Oliva Castaneda, Kevel"]
[Black "Perez Mitjans, Orelvis"]
[Result "1/2-1/2"]
[ECO "E73"]
[WhiteElo "2491"]
[BlackElo "2399"]
[Annotator "ChessBase"]
[PlyCount "33"]
[EventDate "2018.07.04"]
[EventType "swiss"]
[EventCountry "ESP"]
[SourceTitle "playchess.com"]
[Source "ChessBase"]
[SourceQuality "1"]
[TimeControl "5400+30"]

1. d4 {[%emt 0:00:00]} Nf6 {[%emt 0:07:47]} 2. c4 g6 {[%emt 0:00:06]} 3. Nc3 {[%emt 0:00:15]} Bg7 4. e4 d6 {[%emt 0:00:08]} 5. Be2 {[%emt 0:00:14]} O-O {[%emt 0:00:08]} 6. Be3 {[%emt 0:00:00]} e5 {[%emt 0:02:10]} 7. d5 {[%emt 0:00:15]} Ne8 8. g4 f5 {[%emt 0:01:27]} 9. gxf5 {[%emt 0:00:37]} gxf5 {[%emt 0:00:00]} 10. exf5 {[%emt 0:02:16]} Bxf5 {[%emt 0:02:05]} 11. Nf3 {[%emt 0:01:56]} Nd7 {[%emt 0:02:29]} 12. Rg1 {[%emt 0:14:01]} Kh8 {[%emt 0:12:08]} 13. Bg5 {[%emt 0:04:55]} Bf6 {[%emt 0:01:43]} 14. Qd2 {[%emt 0:04:26]} Nc5 {[%emt 0:05:34]} 15. Qe3 {[%emt 0:08:56]} Bxg5 {[%emt 0:15:53]} 16. Nxg5 {[%emt 0:05:25]} a5 17. O-O-O 1/2-1/2

[Event "XLI Barbera del Valles Open 2018"]
[Site "Barbera del Valles"]
[Date "2018.07.06"]
[Round "3"]
[White "Iniyan, P."]
[Black "Kumar, Gaurav"]
[Result "1-0"]
[ECO "E21"]
[WhiteElo "2451"]
[BlackElo "2074"]
[Annotator "ChessBase"]
[PlyCount "61"]
[EventDate "2018.07.04"]
[EventType "swiss"]
[EventCountry "ESP"]
[SourceTitle "playchess.com"]
[Source "ChessBase"]
[SourceQuality "1"]
[TimeControl "5400+30"]

1. d4 {[%emt 0:00:00]} Nf6 {[%emt 0:00:00]} 2. c4 {[%emt 0:00:00]} e6 {[%emt 0:00:00]} 3. Nc3 {[%emt 0:00:00]} Bb4 {[%emt 0:00:00]} 4. Nf3 {[%emt 0:00:00]} c5 {[%emt 0:00:04]} 5. g3 {[%emt 0:00:12]} Nc6 {[%emt 0:00:08]} 6. Bg2 {[%emt 0:00:05]} Ne4 {[%emt 0:00:08]} 7. Qd3 {[%emt 0:00:28]} cxd4 {[%emt 0:17:34]} 8. Nxd4 {[%emt 0:00:10]} Nxc3 {[%emt 0:14:01]} 9. bxc3 {[%emt 0:03:33]} Ne5 {[%emt 0:00:36]} 10. Qc2 {[%emt 0:00:06]} Be7 {[%emt 0:01:55]} 11. Qb3 {[%emt 0:00:05]} a6 {[%emt 0:00:23]} 12. O-O {[%emt 0:06:18]} Qc7 {[%emt 0:04:22]} 13. Bf4 {[%emt 0:02:41]} f6 {[%emt 0:08:20]} 14. Nf3 {[%emt 0:08:10]} g5 {[%emt 0:22:27]} 15. Bxe5 {[%emt 0:01:57]} fxe5 {[%emt 0:00:06]} 16. Qc2 {[%emt 0:02:31]} Qxc4 {[%emt 0:04:25]} 17. Nxe5 {[%emt 0:00:09]} Qc5 {[%emt 0:07:07]} 18. Nd3 {[%emt 0:04:49]} Qa7 19. Qa4 {[%emt 0:00:51]} O-O {[%emt 0:08:06]} 20. Qg4 {[%emt 0:00:08]} d6 {[%emt 0:00:25]} 21. Kh1 {[%emt 0:00:28]} e5 {[%emt 0:00:57]} 22. Qc4+ {[%emt 0:00:34]} Kh8 {[%emt 0:02:18]} 23. f4 exf4 {[%emt 0:02:28]} 24. gxf4 {[%emt 0:04:27]} b5 {[%emt 0:05:29]} 25. Qd5 {[%emt 0:06:32]} Bg4 {[%emt 0:00:24]} 26. Rae1 {[%emt 0:04:04]} gxf4 {[%emt 0:00:35]} 27. h3 {[%emt 0:00:17]} Bf5 {[%emt 0:00:28]} 28. e4 {[%emt 0:00:20]} Bg6 {[%emt 0:00:37]} 29. Nxf4 {[%emt 0:00:09]} Qc5 {[%emt 0:00:28]} 30. Qe6 {[%emt 0:00:28]} Kg7 {[%emt 0:00:36]} 31. Qxe7+ {[%emt 0:00:07]} 1-0

[Event "XLI Barbera del Valles Open 2018"]
[Site "Barbera del Valles"]
[Date "2018.07.06"]
[Round "3"]
[White "Himanshu, Sharma"]
[Black "Guseinov, Gadir"]
[Result "0-1"]
[ECO "B34"]
[WhiteElo "2420"]
[BlackElo "2654"]
[Annotator "RC"]
[PlyCount "118"]
[EventDate "2018.07.04"]
[EventType "swiss"]
[EventCountry "ESP"]
[SourceTitle "playchess.com"]
[Source "ChessBase"]
[SourceQuality "1"]
[TimeControl "5400+30"]

1. e4 {[%emt 0:00:00]} c5 {[%emt 0:00:00]} 2. Nc3 {[%emt 0:00:00]} Nc6 {[%emt 0:00:00]} 3. Nge2 {[%emt 0:00:29]} g6 {[%emt 0:00:00]} 4. d4 {[%emt 0:00:08]} cxd4 {[%emt 0:00:03]} 5. Nxd4 {[%emt 0:00:05]} Bg7 {[%emt 0:00:08]} 6. Nde2 {[%emt 0:00:54]} Nf6 {[%emt 0:01:17]} 7. a4 {[%emt 0:05:11]} O-O {[%emt 0:13:05]} 8. g3 {[%emt 0:00:20]} b6 {[%emt 0:00:06]} 9. Bg2 {[%emt 0:00:28]} Ba6 {[%emt 0:00:06]} 10. O-O {[%emt 0:01:40]} Rc8 {[%emt 0:00:12]} 11. Nb5 {[%emt 0:04:44]} d6 {[%emt 0:00:27]} 12. Ra3 {[%emt 0:05:41]} Nd7 {[%emt 0:14:19]} 13. Re3 {[%emt 0:09:14]} Bb7 {[%emt 0:10:02]} 14. c4 {[%emt 0:08:30]} a6 {[%emt 0:01:30]} 15. Nbc3 {[%emt 0:01:03]} Na5 {[%emt 0:04:39]} 16. b3 {[%emt 0:00:30]} Nc5 {[%emt 0:00:05]} 17. b4 {[%emt 0:03:33]} Nxc4 {[%emt 0:00:05]} 18. bxc5 {[%emt 0:00:05]} Nxe3 {[%emt 0:00:15]} 19. Bxe3 {[%emt 0:00:05]} bxc5 {[%emt 0:00:04]} 20. h4 {[%emt 0:04:37]} e6 {[%emt 0:02:06]} 21. Qd2 {[%emt 0:01:25]} Qe7 {[%emt 0:02:23]} 22. Bg5 {[%emt 0:00:48]} f6 {[%emt 0:01:03]} 23. Bf4 {[%emt 0:02:26]} Rfd8 {[%emt 0:01:15]} 24. Rd1 {[%emt 0:00:57]} Bf8 {[%emt 0:00:12]} 25. Qa2 {[%emt 0:00:17]} Qf7 {[%emt 0:01:35]} 26. Be3 {[%emt 0:04:46]} Re8 {[%emt 0:04:05]} 27. Nf4 {[%emt 0:02:06]} Rcd8 {[%emt 0:00:12]} 28. Bf1 {[%emt 0:02:53]} g5 {[%emt 0:06:04]} 29. hxg5 {[%emt 0:01:15]} fxg5 {[%emt 0:02:04]} 30. Nfe2 {[%emt 0:08:41]} h6 {[%emt 0:03:26]} 31. Bg2 {[%emt 0:02:32]} Rd7 {[%emt 0:07:15]} 32. a5 {[%emt 0:00:24]} Bc6 {[%emt 0:04:10]} 33. Na4 {[%emt 0:03:36]} Bg7 {[%emt 0:04:22]} 34. Nb6 {[%emt 0:01:52]} Rdd8 {[%emt 0:00:01]} 35. Qb3 {[%emt 0:01:17]} Qg6 {[%emt 0:01:31]} 36. Nc4 {[%emt 0:07:01]} Bf8 {[%emt 0:05:10]} 37. Nc3 {[%emt 0:00:46]} Qf7 {[%emt 0:00:18]} 38. Nb6 {[%emt 0:08:10]} Bg7 {[%emt 0:01:02]} 39. Qc4 {[%emt 0:00:46]} Qb7 {[%emt 0:01:19]} 40. Nca4 {[%emt 0:01:31]} Bb5 {[%emt 0:00:32]} 41. Qc2 {[%emt 0:02:03]} Qf7 {[%emt 0:00:26]} 42. Nc3 {[%emt 0:02:00]} Bc6 {[%emt 0:00:01]} 43. Nc4 {[%emt 0:00:31]} d5 {[%emt 0:08:38]} 44. exd5 {[%emt 0:00:10]} Bxd5 {[%emt 0:00:03]} 45. Ne4 {[%emt 0:01:09]} Qf5 {[%emt 0:01:41]} 46. Rc1 {[%emt 0:01:13]} Bxc4 {[%emt 0:00:35]} 47. Qxc4 {[%emt 0:00:06]} Bd4 {[%emt 0:00:00]} 48. Qe2 {[%emt 0:00:48]} Qe5 {[%emt 0:01:31]} 49. Re1 {[%emt 0:02:40]} Bxe3 {[%emt 0:00:37]} 50. fxe3 {[%emt 0:00:29]} Rb8 {[%emt 0:02:41]} 51. Qxa6 {[%emt 0:00:07]} Rb2 {[%emt 0:00:16]} 52. Re2 {[%emt 0:00:31]} Rb1+ {[%emt 0:00:32]} 53. Kh2 {[%emt 0:00:05]} g4 {[%emt 0:00:04]} 54. Nf2 {[%emt 0:03:00]} Qh5+ {[%emt 0:00:04]} 55. Nh3 {[%emt 0:00:12]} gxh3 {[%emt 0:00:04]} 56. Be4 {[%emt 0:01:08]} Rb4 {[%emt 0:01:00]} 57. Bc6 {[%emt 0:00:03]} Reb8 {[%emt 0:01:04]} 58. Qd3 {[%emt 0:00:35]} Qxe2+ {[%emt 0:00:42]} 59. Qxe2 {[%emt 0:00:06]} Rb2 {[%emt 0:00:01]} 0-1

[Event "XLI Barbera del Valles Open 2018"]
[Site "Barbera del Valles"]
[Date "2018.07.06"]
[Round "3"]
[White "Neelash Saha"]
[Black "Alsina Leal, Daniel"]
[Result "1-0"]
[ECO "A45"]
[WhiteElo "2319"]
[BlackElo "2492"]
[Annotator "RC"]
[PlyCount "83"]
[EventDate "2018.07.04"]
[EventType "swiss"]
[EventCountry "ESP"]
[SourceTitle "playchess.com"]
[Source "ChessBase"]
[SourceQuality "1"]
[TimeControl "5400+30"]

1. d4 {[%emt 0:01:25]} Nf6 {[%emt 0:00:00]} 2. Bf4 {[%emt 0:00:14]} g6 {[%emt 0:01:01]} 3. Nc3 {[%emt 0:00:06]} d5 {[%emt 0:00:34]} 4. e3 {[%emt 0:00:08]} Bg7 {[%emt 0:01:09]} 5. h4 {[%emt 0:00:13]} c5 {[%emt 0:05:12]} 6. Nb5 {[%emt 0:00:52]} Na6 {[%emt 0:01:42]} 7. c3 {[%emt 0:00:06]} h6 {[%emt 0:03:32]} 8. Be2 {[%emt 0:00:26]} Bd7 {[%emt 0:06:01]} 9. a4 {[%emt 0:00:06]} c4 {[%emt 0:05:48]} 10. b3 {[%emt 0:04:09]} cxb3 {[%emt 0:03:20]} 11. Qxb3 {[%emt 0:00:08]} O-O {[%emt 0:01:40]} 12. Nf3 {[%emt 0:00:17]} Bg4 {[%emt 0:04:33]} 13. Nd2 {[%emt 0:08:17]} Bxe2 {[%emt 0:05:18]} 14. Kxe2 {[%emt 0:01:36]} Ne4 {[%emt 0:10:04]} 15. Nxe4 {[%emt 0:28:07]} dxe4 {[%emt 0:00:37]} 16. Qc2 {[%emt 0:00:16]} Qd5 {[%emt 0:02:19]} 17. c4 {[%emt 0:00:21]} Rfc8 {[%emt 0:18:42]} 18. Rhc1 {[%emt 0:05:59]} Qf5 {[%emt 0:01:08]} 19. Rab1 {[%emt 0:01:32]} e5 {[%emt 0:01:41]} 20. Bg3 {[%emt 0:01:03]} Rd8 {[%emt 0:05:00]} 21. Rd1 {[%emt 0:01:06]} b6 {[%emt 0:05:35]} 22. Kf1 {[%emt 0:02:36]} exd4 {[%emt 0:04:35]} 23. exd4 {[%emt 0:00:14]} Bf8 {[%emt 0:01:03]} 24. Re1 {[%emt 0:06:07]} Re8 {[%emt 0:00:05]} 25. Bd6 {[%emt 0:00:50]} Bg7 {[%emt 0:01:41]} 26. Bg3 {[%emt 0:04:20]} Bf8 {[%emt 0:00:05]} 27. Bd6 {[%emt 0:02:05]} Bg7 {[%emt 0:00:11]} 28. c5 {[%emt 0:05:56]} bxc5 {[%emt 0:01:40]} 29. dxc5 {[%emt 0:00:04]} Qg4 {[%emt 0:00:32]} 30. c6 {[%emt 0:04:15]} Qxh4 {[%emt 0:01:43]} 31. Kg1 {[%emt 0:00:09]} h5 {[%emt 0:02:46]} 32. c7 {[%emt 0:03:02]} Qg4 {[%emt 0:02:54]} 33. Qc6 {[%emt 0:02:47]} h4 {[%emt 0:01:04]} 34. Rb3 {[%emt 0:01:44]} f5 {[%emt 0:02:11]} 35. f3 {[%emt 0:02:22]} Qg5 {[%emt 0:01:15]} 36. f4 {[%emt 0:02:51]} Qg4 {[%emt 0:00:35]} 37. Qxa6 {[%emt 0:01:11]} g5 {[%emt 0:00:18]} 38. fxg5 {[%emt 0:01:13]} f4 {[%emt 0:00:07]} 39. Qc6 {[%emt 0:00:30]} a6 {[%emt 0:01:02]} 40. Rxe4 {[%emt 0:01:50]} Rec8 {[%emt 0:00:33]} 41. Qd5+ {[%emt 0:00:17]} Kh7 {[%emt 0:00:22]} 42. Rxf4 {[%emt 0:00:10]} 1-0